[Event "Titled Tuesday Blitz March 21 Early 2023"]
[White "Tarnowska, Aleksandra"]
[Black "Khamdamova, Afruza"]
[WhiteFideId "1180967"]
[BlackFideId "14210444"]
[WhiteElo "1776"]
[BlackElo "2210"]
[Result "0-1"]
[Round "04"]
[TimeControl "180+2"]
[Date "2023.03.21"]
[WhiteClock "0:00:02"]
[BlackClock "0:00:43"]

1. e4 {[%clk 0:03:00]}  e5 {[%clk 0:02:59]} 2. Nf3 {[%clk 0:03:00]}  Nc6 {[%clk 0:02:59]} 3. Bb5 {[%clk 0:03:01]}  a6 {[%clk 0:02:58]} 4. Ba4 {[%clk 0:03:02]}  Nf6 {[%clk 0:02:58]} 5. O-O {[%clk 0:03:01]}  Be7 {[%clk 0:02:58]} 6. Re1 {[%clk 0:02:59]}  b5 {[%clk 0:02:58]} 7. Bb3 {[%clk 0:02:59]}  O-O {[%clk 0:02:58]} 8. d4 {[%clk 0:02:56]}  d6 {[%clk 0:02:58]} 9. h3 {[%clk 0:02:53]}  Nxd4 {[%clk 0:02:51]} 10. Nxd4 {[%clk 0:02:53]}  exd4 {[%clk 0:02:51]} 11. Qxd4 {[%clk 0:02:54]}  c5 {[%clk 0:02:51]} 12. Qd3 {[%clk 0:02:43]}  c4 {[%clk 0:02:51]} 13. Bxc4 {[%clk 0:02:43]}  bxc4 {[%clk 0:02:52]} 14. Qxc4 {[%clk 0:02:44]}  Be6 {[%clk 0:02:52]} 15. Qd3 {[%clk 0:02:43]}  Qb6 {[%clk 0:02:40]} 16. Nc3 {[%clk 0:02:33]}  Rfc8 {[%clk 0:02:39]} 17. Rb1 {[%clk 0:02:24]}  d5 {[%clk 0:02:32]} 18. e5 {[%clk 0:01:57]}  Nd7 {[%clk 0:02:29]} 19. Be3 {[%clk 0:01:51]}  Nc5 {[%clk 0:02:25]} 20. Qd4 {[%clk 0:01:40]}  Qc6 {[%clk 0:02:22]} 21. a3 {[%clk 0:01:25]}  Ne4 {[%clk 0:02:19]} 22. Nxe4 {[%clk 0:01:08]}  dxe4 {[%clk 0:02:19]} 23. Bf4 {[%clk 0:00:35]}  Qxc2 {[%clk 0:02:13]} 24. Rbc1 {[%clk 0:00:30]}  Qd3 {[%clk 0:02:10]} 25. Rxc8+ {[%clk 0:00:27]}  Rxc8 {[%clk 0:02:09]} 26. Qa7 {[%clk 0:00:28]}  Bc5 {[%clk 0:02:06]} 27. Qb7 {[%clk 0:00:27]}  Qc2 {[%clk 0:01:14]} 28. Bg3 {[%clk 0:00:11]}  h6 {[%clk 0:01:10]} 29. Rxe4 {[%clk 0:00:09]}  Rd8 {[%clk 0:01:08]} 30. Rf4 {[%clk 0:00:06]}  Rd1+ {[%clk 0:01:02]} 31. Kh2 {[%clk 0:00:07]}  Qc1 {[%clk 0:01:02]} 32. Qa8+ {[%clk 0:00:04]}  Kh7 {[%clk 0:01:00]} 33. Qe4+ {[%clk 0:00:04]}  g6 {[%clk 0:00:59]} 34. Bh4 {[%clk 0:00:02]}  Bd5 {[%clk 0:00:43]} 0-1


[Site "https://www.chess.com"]

[Event "Titled Tuesday Blitz March 21 Early 2023"]
[White "Torres Dominguez, David"]
[Black "Khandelwal, Ankush"]
[WhiteFideId "2220857"]
[BlackFideId "413470"]
[WhiteElo "1999"]
[BlackElo "2263"]
[Result "0-1"]
[Round "04"]
[TimeControl "180+2"]
[Date "2023.03.21"]
[WhiteClock "0:00:05"]
[BlackClock "0:00:06"]

1. e4 {[%clk 0:03:00]}  c5 {[%clk 0:02:57]} 2. Nc3 {[%clk 0:03:01]}  Nc6 {[%clk 0:02:45]} 3. Bb5 {[%clk 0:03:01]}  Nd4 {[%clk 0:02:42]} 4. Bc4 {[%clk 0:03:02]}  e6 {[%clk 0:02:41]} 5. Nge2 {[%clk 0:03:02]}  Nf6 {[%clk 0:02:39]} 6. O-O {[%clk 0:03:02]}  a6 {[%clk 0:02:38]} 7. a4 {[%clk 0:02:59]}  d5 {[%clk 0:02:36]} 8. exd5 {[%clk 0:02:55]}  exd5 {[%clk 0:02:37]} 9. Nxd4 {[%clk 0:02:49]}  cxd4 {[%clk 0:02:29]} 10. Re1+ {[%clk 0:02:41]}  Be7 {[%clk 0:02:27]} 11. Nxd5 {[%clk 0:02:33]}  Nxd5 {[%clk 0:02:26]} 12. Qh5 {[%clk 0:02:33]}  Be6 {[%clk 0:02:04]} 13. Rxe6 {[%clk 0:02:31]}  g6 {[%clk 0:02:05]} 14. Qe5 {[%clk 0:01:35]}  Rf8 {[%clk 0:01:21]} 15. Bxd5 {[%clk 0:01:28]}  fxe6 {[%clk 0:01:20]} 16. Bxb7 {[%clk 0:01:27]}  Ra7 {[%clk 0:00:59]} 17. Bc6+ {[%clk 0:01:23]}  Kf7 {[%clk 0:00:58]} 18. d3 {[%clk 0:01:22]}  Bd6 {[%clk 0:00:55]} 19. Qe4 {[%clk 0:01:18]}  Qf6 {[%clk 0:00:41]} 20. Bh6 {[%clk 0:01:14]}  Rc8 {[%clk 0:00:41]} 21. Re1 {[%clk 0:01:11]}  Rac7 {[%clk 0:00:39]} 22. Bb7 {[%clk 0:01:07]}  Rb8 {[%clk 0:00:36]} 23. Bxa6 {[%clk 0:01:06]}  Rxc2 {[%clk 0:00:36]} 24. Bc4 {[%clk 0:01:04]}  Qxf2+ {[%clk 0:00:36]} 25. Kh1 {[%clk 0:01:04]}  Re8 {[%clk 0:00:29]} 26. Bxe6+ {[%clk 0:00:54]}  Kf6 {[%clk 0:00:30]} 27. h4 {[%clk 0:00:38]}  Rxb2 {[%clk 0:00:15]} 28. h5 {[%clk 0:00:18]}  gxh5 {[%clk 0:00:12]} 29. Rc1 {[%clk 0:00:06]}  Rxe6 {[%clk 0:00:11]} 30. Bg5+ {[%clk 0:00:05]}  Kxg5 {[%clk 0:00:06]} 31. Qxe6 {[%clk 0:00:05]}  Qxg2# {[%clk 0:00:06]} 0-1


[Site "https://www.chess.com"]

[Event "Titled Tuesday Blitz March 21 Early 2023"]
[White "Prado, Alexandra"]
[Black "Gonzalez, Francisco Silva"]
[WhiteFideId "3301346"]
[BlackFideId "1512285"]
[WhiteElo "1759"]
[BlackElo "2074"]
[Result "0-1"]
[Round "04"]
[TimeControl "180+2"]
[Date "2023.03.21"]
[WhiteClock "0:00:01"]
[BlackClock "0:01:24"]

1. e4 {[%clk 0:02:59]}  e5 {[%clk 0:02:59]} 2. Nf3 {[%clk 0:02:56]}  Nc6 {[%clk 0:02:54]} 3. d4 {[%clk 0:02:52]}  exd4 {[%clk 0:02:54]} 4. Nxd4 {[%clk 0:02:48]}  Bc5 {[%clk 0:02:52]} 5. Nb3 {[%clk 0:02:48]}  Bb6 {[%clk 0:02:52]} 6. Qe2 {[%clk 0:02:48]}  a5 {[%clk 0:02:52]} 7. a4 {[%clk 0:02:48]}  Nb4 {[%clk 0:02:46]} 8. c3 {[%clk 0:02:21]}  Nc6 {[%clk 0:02:41]} 9. N1d2 {[%clk 0:01:59]}  Nge7 {[%clk 0:02:33]} 10. Nc4 {[%clk 0:01:43]}  Ba7 {[%clk 0:02:32]} 11. Bg5 {[%clk 0:01:34]}  O-O {[%clk 0:02:29]} 12. Qh5 {[%clk 0:00:58]}  Qe8 {[%clk 0:02:23]} 13. Bd3 {[%clk 0:00:54]}  f6 {[%clk 0:02:20]} 14. Qxe8 {[%clk 0:00:48]}  Rxe8 {[%clk 0:02:20]} 15. Bf4 {[%clk 0:00:46]}  d5 {[%clk 0:02:19]} 16. Ne3 {[%clk 0:00:23]}  Bb6 {[%clk 0:02:11]} 17. O-O {[%clk 0:00:17]}  Be6 {[%clk 0:02:10]} 18. exd5 {[%clk 0:00:17]}  Nxd5 {[%clk 0:02:09]} 19. Nxd5 {[%clk 0:00:16]}  Bxd5 {[%clk 0:02:09]} 20. c4 {[%clk 0:00:16]}  Bf7 {[%clk 0:02:07]} 21. Rfe1 {[%clk 0:00:16]}  Red8 {[%clk 0:02:05]} 22. Rad1 {[%clk 0:00:15]}  Rxd3 {[%clk 0:02:04]} 23. Rxd3 {[%clk 0:00:14]}  Bxc4 {[%clk 0:02:04]} 24. Rc3 {[%clk 0:00:14]}  Bxb3 {[%clk 0:02:03]} 25. Rxb3 {[%clk 0:00:14]}  Rd8 {[%clk 0:02:03]} 26. Rbe3 {[%clk 0:00:14]}  Kf7 {[%clk 0:02:02]} 27. Re4 {[%clk 0:00:14]}  f5 {[%clk 0:01:55]} 28. R4e2 {[%clk 0:00:13]}  h6 {[%clk 0:01:44]} 29. h3 {[%clk 0:00:14]}  g5 {[%clk 0:01:43]} 30. Be3 {[%clk 0:00:14]}  Bxe3 {[%clk 0:01:41]} 31. Rxe3 {[%clk 0:00:15]}  Rd4 {[%clk 0:01:40]} 32. R3e2 {[%clk 0:00:10]}  Rxa4 {[%clk 0:01:39]} 33. Rd2 {[%clk 0:00:10]}  Nd4 {[%clk 0:01:34]} 34. Red1 {[%clk 0:00:09]}  c5 {[%clk 0:01:33]} 35. b3 {[%clk 0:00:09]}  Rb4 {[%clk 0:01:33]} 36. Rd3 {[%clk 0:00:08]}  b6 {[%clk 0:01:32]} 37. Rb1 {[%clk 0:00:07]}  a4 {[%clk 0:01:31]} 38. Ra1 {[%clk 0:00:06]}  axb3 {[%clk 0:01:30]} 39. Ra7+ {[%clk 0:00:06]}  Kf6 {[%clk 0:01:29]} 40. Ra1 {[%clk 0:00:05]}  h5 {[%clk 0:01:29]} 41. g3 {[%clk 0:00:04]}  g4 {[%clk 0:01:27]} 42. hxg4 {[%clk 0:00:01]}  hxg4 {[%clk 0:01:27]} 43. Re3 {[%clk 0:00:02]}  b2 {[%clk 0:01:26]} 44. Rb1 {[%clk 0:00:02]}  Nf3+ {[%clk 0:01:24]} 45. Kg2 {[%clk 0:00:01]}  Rc4 {[%clk 0:01:24]} 0-1


[Site "https://www.chess.com"]

[Event "Titled Tuesday Blitz March 21 Early 2023"]
[White "Miszler, Levente"]
[Black "Buscar, Michael"]
[WhiteFideId "763276"]
[BlackFideId "2603616"]
[WhiteElo "2176"]
[BlackElo "2010"]
[Result "1/2-1/2"]
[Round "04"]
[TimeControl "180+2"]
[Date "2023.03.21"]
[WhiteClock "0:00:48"]
[BlackClock "0:00:22"]

1. Nf3 {[%clk 0:03:00]}  d5 {[%clk 0:02:52]} 2. c4 {[%clk 0:03:01]}  e6 {[%clk 0:02:52]} 3. g3 {[%clk 0:03:01]}  Nf6 {[%clk 0:02:51]} 4. Bg2 {[%clk 0:03:02]}  Be7 {[%clk 0:02:50]} 5. O-O {[%clk 0:03:02]}  O-O {[%clk 0:02:51]} 6. d4 {[%clk 0:03:02]}  c6 {[%clk 0:02:48]} 7. Qc2 {[%clk 0:03:01]}  Nbd7 {[%clk 0:02:48]} 8. b3 {[%clk 0:03:00]}  Re8 {[%clk 0:02:46]} 9. Bb2 {[%clk 0:03:00]}  Nf8 {[%clk 0:02:46]} 10. Nbd2 {[%clk 0:03:00]}  Ng6 {[%clk 0:02:47]} 11. e4 {[%clk 0:03:00]}  dxe4 {[%clk 0:02:45]} 12. Nxe4 {[%clk 0:03:01]}  Nxe4 {[%clk 0:02:46]} 13. Qxe4 {[%clk 0:03:02]}  Bf6 {[%clk 0:02:46]} 14. Rad1 {[%clk 0:02:59]}  Qa5 {[%clk 0:02:45]} 15. a3 {[%clk 0:02:58]}  Bd7 {[%clk 0:02:27]} 16. Rfe1 {[%clk 0:02:56]}  Rad8 {[%clk 0:02:27]} 17. Ne5 {[%clk 0:02:53]}  Bc8 {[%clk 0:02:24]} 18. b4 {[%clk 0:02:42]}  Qc7 {[%clk 0:02:22]} 19. c5 {[%clk 0:02:30]}  Bxe5 {[%clk 0:02:14]} 20. dxe5 {[%clk 0:02:30]}  Rxd1 {[%clk 0:01:58]} 21. Rxd1 {[%clk 0:02:31]}  Ne7 {[%clk 0:01:56]} 22. Rd6 {[%clk 0:02:28]}  Nd5 {[%clk 0:01:55]} 23. Qd4 {[%clk 0:02:20]}  b6 {[%clk 0:01:50]} 24. Bf1 {[%clk 0:02:16]}  b5 {[%clk 0:01:34]} 25. Bc1 {[%clk 0:02:12]}  Bd7 {[%clk 0:01:24]} 26. Bd2 {[%clk 0:02:12]}  Rc8 {[%clk 0:01:01]} 27. Qa1 {[%clk 0:02:09]}  a6 {[%clk 0:00:55]} 28. a4 {[%clk 0:02:09]}  Qb7 {[%clk 0:00:51]} 29. axb5 {[%clk 0:02:04]}  axb5 {[%clk 0:00:49]} 30. Qa5 {[%clk 0:02:02]}  Be8 {[%clk 0:00:36]} 31. Rd8 {[%clk 0:01:59]}  Kf8 {[%clk 0:00:35]} 32. Bg2 {[%clk 0:01:38]}  Qb8 {[%clk 0:00:20]} 33. Rxc8 {[%clk 0:01:35]}  Qxc8 {[%clk 0:00:20]} 34. Qa7 {[%clk 0:01:28]}  Qc7 {[%clk 0:00:17]} 35. Qa8 {[%clk 0:01:24]}  Qxe5 {[%clk 0:00:16]} 36. Bxd5 {[%clk 0:01:21]}  exd5 {[%clk 0:00:16]} 37. Bf4 {[%clk 0:01:22]}  Qe1+ {[%clk 0:00:14]} 38. Kg2 {[%clk 0:01:22]}  Qe4+ {[%clk 0:00:14]} 39. f3 {[%clk 0:01:19]}  Qe2+ {[%clk 0:00:14]} 40. Kh3 {[%clk 0:01:19]}  Qe6+ {[%clk 0:00:13]} 41. g4 {[%clk 0:01:19]}  h5 {[%clk 0:00:10]} 42. Qd8 {[%clk 0:01:05]}  hxg4+ {[%clk 0:00:10]} 43. fxg4 {[%clk 0:01:05]}  g6 {[%clk 0:00:09]} 44. Bh6+ {[%clk 0:01:02]}  Kg8 {[%clk 0:00:09]} 45. Qg5 {[%clk 0:00:49]}  Bd7 {[%clk 0:00:09]} 46. Qf4 {[%clk 0:00:47]}  Kh7 {[%clk 0:00:08]} 47. Kg3 {[%clk 0:00:46]}  Qxg4+ {[%clk 0:00:07]} 48. Qxg4 {[%clk 0:00:46]}  Bxg4 {[%clk 0:00:08]} 49. Be3 {[%clk 0:00:45]}  Be6 {[%clk 0:00:08]} 50. Kf4 {[%clk 0:00:45]}  f6 {[%clk 0:00:08]} 51. Bd4 {[%clk 0:00:45]}  Kg7 {[%clk 0:00:09]} 52. h4 {[%clk 0:00:46]}  Kf7 {[%clk 0:00:09]} 53. Bc3 {[%clk 0:00:46]}  Bf5 {[%clk 0:00:09]} 54. Bd4 {[%clk 0:00:46]}  Ke6 {[%clk 0:00:09]} 55. Bc3 {[%clk 0:00:46]}  Bc2 {[%clk 0:00:09]} 56. Bd4 {[%clk 0:00:45]}  Bd1 {[%clk 0:00:09]} 57. Bc3 {[%clk 0:00:45]}  Bh5 {[%clk 0:00:09]} 58. Bd4 {[%clk 0:00:46]}  Kf7 {[%clk 0:00:10]} 59. Bc3 {[%clk 0:00:45]}  Ke6 {[%clk 0:00:11]} 60. Bd4 {[%clk 0:00:46]}  Kf7 {[%clk 0:00:11]} 61. Bc3 {[%clk 0:00:46]}  Be2 {[%clk 0:00:12]} 62. Bd4 {[%clk 0:00:46]}  Bd3 {[%clk 0:00:12]} 63. Bc3 {[%clk 0:00:47]}  Be4 {[%clk 0:00:13]} 64. Bd4 {[%clk 0:00:47]}  Kg7 {[%clk 0:00:14]} 65. Bc3 {[%clk 0:00:48]}  Kf7 {[%clk 0:00:15]} 66. Bd4 {[%clk 0:00:48]}  Ke6 {[%clk 0:00:15]} 67. Bc3 {[%clk 0:00:48]}  Bg2 {[%clk 0:00:14]} 68. Bd4 {[%clk 0:00:49]}  Bh1 {[%clk 0:00:15]} 69. Bc3 {[%clk 0:00:49]}  g5+ {[%clk 0:00:15]} 70. hxg5 {[%clk 0:00:48]}  fxg5+ {[%clk 0:00:16]} 71. Kxg5 {[%clk 0:00:49]}  d4 {[%clk 0:00:17]} 72. Bxd4 {[%clk 0:00:48]}  Kd5 {[%clk 0:00:18]} 73. Bc3 {[%clk 0:00:48]}  Kc4 {[%clk 0:00:18]} 74. Be1 {[%clk 0:00:49]}  Bd5 {[%clk 0:00:19]} 75. Kf6 {[%clk 0:00:49]}  Kd3 {[%clk 0:00:20]} 76. Ke7 {[%clk 0:00:48]}  Ke2 {[%clk 0:00:20]} 77. Bg3 {[%clk 0:00:48]}  Kd3 {[%clk 0:00:20]} 78. Kd6 {[%clk 0:00:49]}  Kc4 {[%clk 0:00:20]} 79. Be1 {[%clk 0:00:49]}  Kd3 {[%clk 0:00:21]} 80. Kc7 {[%clk 0:00:49]}  Ke2 {[%clk 0:00:22]} 81. Bh4 {[%clk 0:00:49]}  Kd2 {[%clk 0:00:22]} 82. Kb6 {[%clk 0:00:48]} 1/2-1/2


[Site "https://www.chess.com"]

[Event "Titled Tuesday Blitz March 21 Early 2023"]
[White "Gatterer, Florian"]
[Black "Korpics, Zsolt"]
[WhiteFideId "811688"]
[BlackFideId "705241"]
[WhiteElo "2221"]
[BlackElo "2321"]
[Result "1/2-1/2"]
[Round "04"]
[TimeControl "180+2"]
[Date "2023.03.21"]
[WhiteClock "0:00:02"]
[BlackClock "0:00:07"]

1. d4 {[%clk 0:03:00]}  Nf6 {[%clk 0:02:58]} 2. Bf4 {[%clk 0:03:00]}  d5 {[%clk 0:02:58]} 3. e3 {[%clk 0:02:59]}  c5 {[%clk 0:02:56]} 4. Nf3 {[%clk 0:02:59]}  Nc6 {[%clk 0:02:55]} 5. c3 {[%clk 0:02:59]}  Qb6 {[%clk 0:02:54]} 6. Qb3 {[%clk 0:02:59]}  c4 {[%clk 0:02:53]} 7. Qc2 {[%clk 0:02:59]}  Bf5 {[%clk 0:02:48]} 8. Qc1 {[%clk 0:02:57]}  e6 {[%clk 0:02:46]} 9. h3 {[%clk 0:02:57]}  h6 {[%clk 0:02:44]} 10. Nbd2 {[%clk 0:02:56]}  Qd8 {[%clk 0:02:30]} 11. Be2 {[%clk 0:02:56]}  Bd6 {[%clk 0:02:28]} 12. Bxd6 {[%clk 0:02:51]}  Qxd6 {[%clk 0:02:28]} 13. O-O {[%clk 0:02:47]}  g5 {[%clk 0:02:08]} 14. Nh2 {[%clk 0:02:37]}  h5 {[%clk 0:02:03]} 15. b3 {[%clk 0:02:37]}  g4 {[%clk 0:01:48]} 16. bxc4 {[%clk 0:02:36]}  gxh3 {[%clk 0:01:48]} 17. cxd5 {[%clk 0:02:32]}  hxg2 {[%clk 0:01:44]} 18. Re1 {[%clk 0:02:21]}  Ng4 {[%clk 0:01:36]} 19. Ndf3 {[%clk 0:01:50]}  exd5 {[%clk 0:01:09]} 20. c4 {[%clk 0:01:49]}  Be4 {[%clk 0:01:07]} 21. cxd5 {[%clk 0:01:41]}  Ne7 {[%clk 0:00:49]} 22. Qc5 {[%clk 0:01:22]}  Qf6 {[%clk 0:00:37]} 23. d6 {[%clk 0:01:01]}  Ng6 {[%clk 0:00:26]} 24. d7+ {[%clk 0:00:55]}  Kxd7 {[%clk 0:00:22]} 25. Rac1 {[%clk 0:00:36]}  Rac8 {[%clk 0:00:20]} 26. Bb5+ {[%clk 0:00:36]}  Bc6 {[%clk 0:00:19]} 27. Bxc6+ {[%clk 0:00:32]}  Rxc6 {[%clk 0:00:19]} 28. Qxa7 {[%clk 0:00:29]}  Kc7 {[%clk 0:00:14]} 29. Qa5+ {[%clk 0:00:27]}  Kb8 {[%clk 0:00:14]} 30. d5 {[%clk 0:00:20]}  Rcc8 {[%clk 0:00:11]} 31. Rb1 {[%clk 0:00:16]}  Rc7 {[%clk 0:00:06]} 32. Rec1 {[%clk 0:00:13]}  Rxc1+ {[%clk 0:00:06]} 33. Rxc1 {[%clk 0:00:13]}  Qd6 {[%clk 0:00:06]} 34. Rb1 {[%clk 0:00:08]}  Nh4 {[%clk 0:00:06]} 35. Qb4 {[%clk 0:00:03]}  Nxf3+ {[%clk 0:00:06]} 36. Nxf3 {[%clk 0:00:02]}  Qxb4 {[%clk 0:00:04]} 37. Rxb4 {[%clk 0:00:01]}  Nf6 {[%clk 0:00:04]} 38. Kxg2 {[%clk 0:00:01]}  Nxd5 {[%clk 0:00:03]} 39. Rd4 {[%clk 0:00:01]}  Nc7 {[%clk 0:00:04]} 40. Rd7 {[%clk 0:00:01]}  Rf8 {[%clk 0:00:03]} 41. Ne5 {[%clk 0:00:01]}  Kc8 {[%clk 0:00:04]} 42. Rd4 {[%clk 0:00:01]}  f6 {[%clk 0:00:04]} 43. Nc4 {[%clk 0:00:01]}  Ne6 {[%clk 0:00:04]} 44. Nd6+ {[%clk 0:00:01]}  Kd7 {[%clk 0:00:04]} 45. Rd2 {[%clk 0:00:02]}  Kc6 {[%clk 0:00:03]} 46. Ne4 {[%clk 0:00:02]}  Rd8 {[%clk 0:00:03]} 47. Rxd8 {[%clk 0:00:02]}  Nxd8 {[%clk 0:00:04]} 48. Nxf6 {[%clk 0:00:02]}  h4 {[%clk 0:00:04]} 49. Kh3 {[%clk 0:00:01]}  Kb5 {[%clk 0:00:05]} 50. Kxh4 {[%clk 0:00:02]}  Ka4 {[%clk 0:00:05]} 51. Ne4 {[%clk 0:00:02]}  Ka3 {[%clk 0:00:06]} 52. Nc5 {[%clk 0:00:02]}  b6 {[%clk 0:00:05]} 53. Nd7 {[%clk 0:00:03]}  b5 {[%clk 0:00:06]} 54. Ne5 {[%clk 0:00:02]}  Kxa2 {[%clk 0:00:06]} 55. Nd3 {[%clk 0:00:03]}  Kb3 {[%clk 0:00:06]} 56. f4 {[%clk 0:00:03]}  Kc3 {[%clk 0:00:06]} 57. Nc5 {[%clk 0:00:03]}  b4 {[%clk 0:00:06]} 58. f5 {[%clk 0:00:03]}  Kc4 {[%clk 0:00:06]} 59. Na4 {[%clk 0:00:04]}  b3 {[%clk 0:00:07]} 60. f6 {[%clk 0:00:03]}  Kb4 {[%clk 0:00:07]} 61. Nb2 {[%clk 0:00:03]}  Ka3 {[%clk 0:00:07]} 62. Nc4+ {[%clk 0:00:03]}  Kb4 {[%clk 0:00:07]} 63. Nb2 {[%clk 0:00:03]}  Kc3 {[%clk 0:00:08]} 64. Na4+ {[%clk 0:00:03]}  Kd3 {[%clk 0:00:08]} 65. Kg5 {[%clk 0:00:02]}  Kxe3 {[%clk 0:00:09]} 66. Kg6 {[%clk 0:00:01]}  Kd4 {[%clk 0:00:07]} 67. f7 {[%clk 0:00:02]}  Nxf7 {[%clk 0:00:06]} 68. Kxf7 {[%clk 0:00:03]}  Kc4 {[%clk 0:00:07]} 69. Kf6 {[%clk 0:00:02]}  Kb4 {[%clk 0:00:07]} 70. Nb2 {[%clk 0:00:02]}  Kc3 {[%clk 0:00:07]} 71. Na4+ {[%clk 0:00:02]}  Kb4 {[%clk 0:00:07]} 72. Nb2 {[%clk 0:00:02]}  Ka3 {[%clk 0:00:07]} 73. Nc4+ {[%clk 0:00:02]}  Kb4 {[%clk 0:00:07]} 74. Nb2 {[%clk 0:00:02]} 1/2-1/2


[Site "https://www.chess.com"]

[Event "Titled Tuesday Blitz March 21 Early 2023"]
[White "Zanette, Edgard Vinicius"]
[Black "Silva, Caio Henrique Angelico"]
[WhiteFideId "2109263"]
[BlackFideId "22777210"]
[WhiteElo "2211"]
[BlackElo "2096"]
[Result "1-0"]
[Round "04"]
[TimeControl "180+2"]
[Date "2023.03.21"]
[WhiteClock "0:00:06"]
[BlackClock "0:00:15"]

1. e4 {[%clk 0:03:00]}  c6 {[%clk 0:02:59]} 2. d4 {[%clk 0:02:58]}  d5 {[%clk 0:03:00]} 3. e5 {[%clk 0:02:57]}  c5 {[%clk 0:02:59]} 4. dxc5 {[%clk 0:02:56]}  e6 {[%clk 0:03:00]} 5. Be3 {[%clk 0:02:52]}  Nd7 {[%clk 0:02:59]} 6. Bb5 {[%clk 0:02:51]}  a6 {[%clk 0:03:00]} 7. Bxd7+ {[%clk 0:02:51]}  Bxd7 {[%clk 0:03:01]} 8. c3 {[%clk 0:02:45]}  Ne7 {[%clk 0:03:01]} 9. Bd4 {[%clk 0:02:36]}  Nc6 {[%clk 0:02:51]} 10. Ne2 {[%clk 0:02:33]}  Qc7 {[%clk 0:02:49]} 11. f4 {[%clk 0:02:32]}  Be7 {[%clk 0:02:49]} 12. Nd2 {[%clk 0:02:28]}  Nxd4 {[%clk 0:02:48]} 13. cxd4 {[%clk 0:02:27]}  b6 {[%clk 0:02:49]} 14. b4 {[%clk 0:02:23]}  a5 {[%clk 0:02:46]} 15. a3 {[%clk 0:02:21]}  Bb5 {[%clk 0:02:43]} 16. Nc3 {[%clk 0:02:14]}  Bd3 {[%clk 0:02:31]} 17. Qf3 {[%clk 0:02:12]}  axb4 {[%clk 0:02:24]} 18. Nxd5 {[%clk 0:01:59]}  exd5 {[%clk 0:02:19]} 19. Qxd3 {[%clk 0:01:59]}  bxc5 {[%clk 0:02:16]} 20. dxc5 {[%clk 0:01:56]}  Bxc5 {[%clk 0:02:11]} 21. Rc1 {[%clk 0:01:36]}  Qb6 {[%clk 0:01:12]} 22. Qxd5 {[%clk 0:01:19]}  Rc8 {[%clk 0:01:10]} 23. Nc4 {[%clk 0:01:05]}  Qb8 {[%clk 0:00:51]} 24. Nd6+ {[%clk 0:00:27]}  Bxd6 {[%clk 0:00:51]} 25. Rxc8+ {[%clk 0:00:22]}  Qxc8 {[%clk 0:00:52]} 26. exd6 {[%clk 0:00:18]}  O-O {[%clk 0:00:49]} 27. O-O {[%clk 0:00:16]}  bxa3 {[%clk 0:00:47]} 28. d7 {[%clk 0:00:16]}  Qb8 {[%clk 0:00:44]} 29. Qa5 {[%clk 0:00:11]}  Rd8 {[%clk 0:00:40]} 30. Rd1 {[%clk 0:00:08]}  h6 {[%clk 0:00:35]} 31. Qxa3 {[%clk 0:00:08]}  Qxf4 {[%clk 0:00:34]} 32. Qe7 {[%clk 0:00:07]}  Qc7 {[%clk 0:00:30]} 33. Qe8+ {[%clk 0:00:05]}  Kh7 {[%clk 0:00:31]} 34. Qe4+ {[%clk 0:00:05]}  Kg8 {[%clk 0:00:27]} 35. Qe8+ {[%clk 0:00:05]}  Kh7 {[%clk 0:00:28]} 36. Qxf7 {[%clk 0:00:06]}  Qb6+ {[%clk 0:00:23]} 37. Qf2 {[%clk 0:00:05]}  Qc6 {[%clk 0:00:22]} 38. Qd2 {[%clk 0:00:05]}  Kh8 {[%clk 0:00:22]} 39. h3 {[%clk 0:00:05]}  Qc5+ {[%clk 0:00:23]} 40. Qd4 {[%clk 0:00:05]}  Qc6 {[%clk 0:00:23]} 41. Qd5 {[%clk 0:00:05]}  Qb6+ {[%clk 0:00:23]} 42. Kh1 {[%clk 0:00:06]}  Qf6 {[%clk 0:00:21]} 43. Re1 {[%clk 0:00:05]}  Qc3 {[%clk 0:00:20]} 44. Re8+ {[%clk 0:00:05]}  Kh7 {[%clk 0:00:16]} 45. Qe4+ {[%clk 0:00:05]}  g6 {[%clk 0:00:15]} 46. Qe7+ {[%clk 0:00:06]} 1-0


[Site "https://www.chess.com"]

[Event "Titled Tuesday Blitz March 21 Early 2023"]
[White "Abrosimov, Vladimir"]
[Black "Szyszylo, Rafal"]
[WhiteFideId "4166892"]
[BlackFideId "1109626"]
[WhiteElo "2336"]
[BlackElo "1951"]
[Result "1/2-1/2"]
[Round "04"]
[TimeControl "180+2"]
[Date "2023.03.21"]
[WhiteClock "0:00:44"]
[BlackClock "0:00:31"]

1. c4 {[%clk 0:03:00]}  g6 {[%clk 0:02:59]} 2. Nc3 {[%clk 0:03:01]}  Bg7 {[%clk 0:02:58]} 3. g3 {[%clk 0:03:01]}  Nf6 {[%clk 0:02:58]} 4. Bg2 {[%clk 0:03:01]}  O-O {[%clk 0:02:58]} 5. d3 {[%clk 0:03:00]}  d6 {[%clk 0:02:59]} 6. e4 {[%clk 0:02:58]}  e5 {[%clk 0:02:59]} 7. Nge2 {[%clk 0:02:58]}  Be6 {[%clk 0:02:56]} 8. O-O {[%clk 0:02:58]}  h6 {[%clk 0:02:55]} 9. f4 {[%clk 0:02:58]}  exf4 {[%clk 0:02:55]} 10. gxf4 {[%clk 0:02:58]}  Nc6 {[%clk 0:02:55]} 11. f5 {[%clk 0:02:58]}  Bd7 {[%clk 0:02:54]} 12. Ng3 {[%clk 0:02:56]}  Kh7 {[%clk 0:02:52]} 13. Be3 {[%clk 0:02:53]}  Ne5 {[%clk 0:02:51]} 14. h3 {[%clk 0:02:49]}  c6 {[%clk 0:02:48]} 15. b3 {[%clk 0:02:46]}  c5 {[%clk 0:02:47]} 16. d4 {[%clk 0:02:41]}  cxd4 {[%clk 0:02:47]} 17. Bxd4 {[%clk 0:02:42]}  Bc6 {[%clk 0:02:42]} 18. Nd5 {[%clk 0:02:40]}  Bxd5 {[%clk 0:02:34]} 19. exd5 {[%clk 0:02:28]}  a6 {[%clk 0:02:15]} 20. Qd2 {[%clk 0:02:15]}  Re8 {[%clk 0:02:09]} 21. Rae1 {[%clk 0:02:10]}  g5 {[%clk 0:01:39]} 22. Ne4 {[%clk 0:02:05]}  Nxe4 {[%clk 0:01:38]} 23. Bxe4 {[%clk 0:02:06]}  Bf6 {[%clk 0:01:34]} 24. Bg2 {[%clk 0:02:01]}  b5 {[%clk 0:01:27]} 25. c5 {[%clk 0:01:53]}  dxc5 {[%clk 0:01:26]} 26. Bxc5 {[%clk 0:01:54]}  Rc8 {[%clk 0:01:22]} 27. b4 {[%clk 0:01:52]}  a5 {[%clk 0:01:20]} 28. a3 {[%clk 0:01:51]}  axb4 {[%clk 0:01:20]} 29. axb4 {[%clk 0:01:52]}  Nd7 {[%clk 0:01:17]} 30. Bd4 {[%clk 0:01:45]}  Bxd4+ {[%clk 0:01:11]} 31. Qxd4 {[%clk 0:01:46]}  Qb6 {[%clk 0:01:10]} 32. Qxb6 {[%clk 0:01:40]}  Nxb6 {[%clk 0:01:11]} 33. Rxe8 {[%clk 0:01:39]}  Rxe8 {[%clk 0:01:12]} 34. Rc1 {[%clk 0:01:34]}  Nc4 {[%clk 0:01:11]} 35. Kf2 {[%clk 0:01:24]}  Kg7 {[%clk 0:01:07]} 36. Bf1 {[%clk 0:01:14]}  Ne3 {[%clk 0:00:57]} 37. Re1 {[%clk 0:01:11]}  Re5 {[%clk 0:00:33]} 38. Rxe3 {[%clk 0:01:07]}  Rxf5+ {[%clk 0:00:33]} 39. Rf3 {[%clk 0:00:58]}  Rxd5 {[%clk 0:00:34]} 40. Bd3 {[%clk 0:00:57]}  Rd4 {[%clk 0:00:34]} 41. Bxb5 {[%clk 0:00:47]}  Rxb4 {[%clk 0:00:34]} 42. Be2 {[%clk 0:00:45]}  Rf4 {[%clk 0:00:29]} 43. Rxf4 {[%clk 0:00:45]}  gxf4 {[%clk 0:00:29]} 44. Kf3 {[%clk 0:00:45]}  f5 {[%clk 0:00:27]} 45. Kxf4 {[%clk 0:00:45]}  h5 {[%clk 0:00:28]} 46. Kxf5 {[%clk 0:00:45]}  h4 {[%clk 0:00:29]} 47. Kg5 {[%clk 0:00:44]}  Kh8 {[%clk 0:00:29]} 48. Kxh4 {[%clk 0:00:43]}  Kg8 {[%clk 0:00:30]} 49. Kg5 {[%clk 0:00:44]}  Kh8 {[%clk 0:00:31]} 1/2-1/2


[Site "https://www.chess.com"]